bitfinex/quotes_BTCUSD_20251024
["timestamp","ask_amount","ask_price","bid_price","bid_amount"]
[1761325322858,4.884e-05,110430.0,110420.0,0.85260465]
[1761325323116,4.884e-05,110430.0,110420.0,1.27498578]
[1761325323571,4.884e-05,110430.0,110420.0,0.43022352]
[1761325323790,4.884e-05,110430.0,110420.0,2.07354919]
[1761325324004,4.884e-05,110430.0,110420.0,2.09791583]
[1761325324243,0.00107618,110430.0,110420.0,2.1251102]
[1761325326163,0.00107618,110430.0,110420.0,2.1261102]
[1761325326796,0.00107618,110430.0,110420.0,2.1251102]
[1761325327007,0.00107618,110430.0,110420.0,2.1281102]
[1761325327217,0.00107618,110430.0,110420.0,2.1351102]
[1761325327633,1e-08,110430.0,110420.0,2.1351102]
[1761325327844,1e-08,110430.0,110420.0,2.23614643]
[1761325328050,1e-08,110430.0,110420.0,2.24614642]
[1761325328285,1e-08,110430.0,110420.0,2.2460782]
[1761325328497,0.01726928,110440.0,110430.0,1.02587246]
[1761325328709,0.01726928,110440.0,110430.0,1.17365147]
[1761325329335,0.01726928,110440.0,110430.0,1.20983375]
[1761325329336,1e-08,110440.0,110430.0,1.20983375]
[1761325329547,1e-08,110440.0,110430.0,1.6565133]
[1761325329760,1e-08,110440.0,110430.0,1.6575133]
[1761325329974,1e-08,110440.0,110430.0,1.68991333]
[1761325330185,1e-08,110440.0,110430.0,2.0156149]
[1761325330394,1e-08,110450.0,110440.0,0.21727608]
[1761325330605,1e-08,110450.0,110440.0,1.73359848]
[1761325330899,1e-08,110450.0,110440.0,1.75787224]
[1761325331340,1e-08,110460.0,110450.0,0.55725969]
[1761325331558,1e-08,110460.0,110450.0,1.54980096]
[1761325331765,1e-08,110460.0,110450.0,1.71825642]
[1761325331974,1e-08,110460.0,110450.0,1.7992965]
[1761325332408,1e-08,110460.0,110450.0,1.75069645]
[1761325332625,1e-08,110460.0,110450.0,2.23167762]
[1761325332837,1e-08,110460.0,110450.0,1.5818965]
[1761325333266,1e-08,110460.0,110450.0,0.90889419]
[1761325333490,1e-08,110460.0,110450.0,1.76065645]
[1761325333705,1e-08,110460.0,110450.0,1.75365645]
[1761325334154,1e-08,110460.0,110450.0,1.83929158]
[1761325334384,1e-08,110460.0,110450.0,1.01571737]
[1761325334599,0.00102693,110460.0,110450.0,0.95775737]
[1761325334819,0.00102693,110460.0,110450.0,1.02071737]
[1761325335031,0.00102693,110460.0,110450.0,1.86547963]
[1761325335890,0.00102693,110460.0,110450.0,1.80751963]
[1761325336102,0.00102693,110460.0,110450.0,1.8330796]
[1761325336305,0.00102693,110460.0,110450.0,1.6157196]
[1761325336512,0.00102693,110460.0,110450.0,1.8330396]
[1761325336718,0.00102693,110460.0,110450.0,1.00368301]
[1761325336926,0.00102693,110460.0,110450.0,1.33500788]
[1761325337141,0.00102693,110460.0,110450.0,1.31081983]
[1761325337355,0.00102693,110460.0,110450.0,1.09345983]
[1761325337571,0.00102693,110460.0,110450.0,0.93463755]
[1761325337783,0.00102693,110460.0,110450.0,0.87667755]
[1761325337993,0.00102693,110460.0,110450.0,1.27463755]
[1761325338461,0.00102693,110460.0,110450.0,1.26963755]
[1761325338672,0.00102693,110460.0,110450.0,1.27263755]
[1761325338878,0.00102693,110460.0,110450.0,1.25363755]
[1761325339085,0.00102693,110460.0,110450.0,1.25663755]
[1761325339520,0.00102693,110460.0,110450.0,1.25163755]
[1761325339733,0.00102693,110460.0,110450.0,0.82925642]
[1761325339947,0.00102693,110460.0,110450.0,1.25163755]
[1761325340360,0.00102693,110460.0,110450.0,0.82925642]
[1761325340575,0.00102693,110460.0,110450.0,1.25163755]
[1761325340818,0.00102693,110460.0,110450.0,1.28781983]
[1761325341676,0.00102693,110460.0,110450.0,1.22985983]
[1761325341886,0.00102693,110460.0,110450.0,1.28781983]
[1761325342348,0.00102693,110460.0,110450.0,1.07045983]
[1761325342600,0.00102693,110460.0,110450.0,1.28781983]
[1761325342813,0.00102693,110460.0,110450.0,1.22985983]
[1761325343034,0.00102693,110460.0,110450.0,1.22981983]
[1761325343249,0.00102693,110460.0,110450.0,1.28777983]
[1761325344138,0.00102693,110460.0,110450.0,1.19363755]
[1761325344379,0.00102693,110460.0,110450.0,1.25159755]
[1761325344603,0.00102693,110460.0,110450.0,0.8653987]
[1761325344824,0.00102693,110460.0,110450.0,1.28777983]
[1761325345262,0.00102693,110460.0,110450.0,0.8653987]
[1761325345467,0.00102693,110460.0,110450.0,1.28777983]
[1761325345685,0.00102693,110460.0,110450.0,0.6480787]
[1761325345958,0.18208794,110460.0,110450.0,0.001]
[1761325346199,0.18208794,110460.0,110450.0,0.34147741]
[1761325346853,0.00102693,110460.0,110450.0,0.85367755]
[1761325347067,0.00102693,110460.0,110450.0,0.91163755]
[1761325347253,0.00102693,110460.0,110450.0,0.48825642]
[1761325347516,0.00102693,110460.0,110450.0,0.91063755]
[1761325349424,0.00102693,110460.0,110450.0,0.94681983]
[1761325349634,0.00102693,110460.0,110450.0,1.39338901]
[1761325349852,0.00102693,110460.0,110450.0,1.73338901]
[1761325351373,0.00102693,110460.0,110450.0,1.73438901]
[1761325351590,0.00102693,110460.0,110450.0,1.76678904]
[1761325351800,0.00102693,110460.0,110450.0,1.79120104]
[1761325352018,0.00102693,110460.0,110450.0,1.79020104]
[1761325353281,0.00102693,110460.0,110450.0,1.76080101]
[1761325353778,0.00102693,110460.0,110450.0,1.75780101]
[1761325354225,0.00102693,110460.0,110450.0,1.75880101]
[1761325354635,0.00102693,110460.0,110450.0,1.78300101]
[1761325354854,0.00102693,110460.0,110450.0,1.79300101]
[1761325355275,0.00102693,110460.0,110450.0,1.78600101]
[1761325356107,0.00102693,110460.0,110450.0,1.79300101]
[1761325356318,0.00102693,110460.0,110450.0,1.75780101]
[1761325356533,0.00102693,110460.0,110450.0,1.76680101]
[1761325356742,0.00102693,110460.0,110450.0,1.76780101]
[1761325357155,0.00102693,110460.0,110450.0,1.76680101]
[1761325357387,0.00102693,110460.0,110450.0,1.72120096]
[1761325359341,0.00102693,110460.0,110450.0,1.78613746]
[1761325363916,0.00102693,110460.0,110450.0,1.81133746]
[1761325364386,0.00102693,110460.0,110450.0,2.23371859]
[1761325364612,0.00102693,110460.0,110450.0,1.81133746]
[1761325365534,0.00102693,110460.0,110450.0,2.23371859]
[1761325366004,0.00102693,110460.0,110450.0,1.81133746]
[1761325366235,1e-08,110460.0,110450.0,2.23371859]
[1761325366425,0.00028,110480.0,110470.0,0.18104462]
[1761325366683,0.00042646,110480.0,110470.0,1.38166508]
[1761325368451,0.00042646,110480.0,110470.0,1.39266508]
[1761325368930,0.00042646,110480.0,110470.0,1.44840354]
[1761325369147,0.00042646,110480.0,110470.0,1.47140354]
[1761325369568,0.00042646,110480.0,110470.0,1.46840354]
[1761325369984,0.00042646,110480.0,110470.0,1.47340354]
[1761325371231,0.00042646,110480.0,110470.0,1.25600354]
[1761325371458,0.00042646,110480.0,110470.0,1.50054362]
[1761325372094,0.00111086,110480.0,110470.0,1.50054362]
[1761325372309,0.00111086,110480.0,110470.0,0.65578136]
[1761325372520,0.00111086,110480.0,110470.0,1.50054362]
[1761325372767,0.00111086,110480.0,110470.0,0.86080249]
[1761325372974,0.00111086,110480.0,110470.0,1.08334514]
[1761325374032,0.00111086,110480.0,110470.0,1.01660668]
[1761325374455,0.00111086,110480.0,110470.0,0.95864668]
[1761325374868,0.00111086,110480.0,110470.0,1.01660668]
[1761325377515,0.00111086,110480.0,110470.0,1.34410977]
[1761325377872,0.00111086,110480.0,110470.0,1.30792749]
[1761325378072,0.00111086,110480.0,110470.0,1.34410977]
[1761325379301,0.00111086,110480.0,110470.0,1.39274896]
[1761325380924,0.00111086,110480.0,110470.0,1.34410977]
[1761325381723,0.00111086,110480.0,110470.0,0.92172864]
[1761325381899,0.00111086,110480.0,110470.0,1.34410977]
[1761325382884,0.00111086,110480.0,110470.0,1.12682977]
[1761325383091,0.00111086,110480.0,110470.0,0.41055647]
[1761325383304,0.00111086,110480.0,110470.0,0.9922576]
[1761325383954,0.00111086,110480.0,110470.0,0.95485487]
[1761325384212,0.00111086,110480.0,110470.0,0.9902576]
[1761325384422,0.00111086,110480.0,110470.0,0.9702576]
[1761325384639,0.00111086,110480.0,110470.0,0.94592749]
[1761325384844,0.00111086,110480.0,110470.0,0.9698863]
[1761325385047,0.00111086,110480.0,110470.0,0.9119663]
[1761325385637,0.00111086,110480.0,110470.0,0.9089663]
[1761325387609,0.00111086,110480.0,110470.0,0.48695913]
[1761325387819,0.00111086,110480.0,110470.0,0.9089663]
[1761325388023,0.00111086,110480.0,110470.0,0.48695913]
[1761325388240,0.00111086,110480.0,110470.0,0.9089663]
[1761325388670,0.00111086,110480.0,110470.0,0.88463353]
[1761325389108,0.00111086,110480.0,110470.0,1.27705227]
[1761325389325,0.0002,110490.0,110480.0,0.52102824]
[1761325389544,0.0002,110490.0,110480.0,1.59390253]
[1761325389977,0.0002,110490.0,110480.0,1.17189536]
[1761325390407,1e-08,110490.0,110480.0,1.59764306]
[1761325391038,0.00100001,110490.0,110480.0,1.59764306]
[1761325391700,1e-08,110490.0,110480.0,1.60764306]
[1761325391915,1e-08,110490.0,110480.0,1.62385613]
[1761325392737,1e-08,110490.0,110480.0,1.62685613]
[1761325393357,1e-08,110490.0,110480.0,1.56200387]
[1761325394668,1e-08,110490.0,110480.0,0.71798953]
[1761325394880,1e-08,110490.0,110480.0,1.56200387]
[1761325395331,1e-08,110490.0,110480.0,1.62685613]
[1761325396247,1e-08,110490.0,110480.0,1.72170386]
[1761325396882,1e-08,110490.0,110480.0,1.78642291]
[1761325397291,10.05,110500.0,110490.0,0.55719413]
[1761325397292,9.59955662,110500.0,110490.0,0.55719413]
[1761325397505,9.59955662,110500.0,110490.0,1.53954299]
[1761325397845,9.59955662,110500.0,110490.0,1.75686299]
[1761325398052,9.59955662,110500.0,110490.0,0.69552865]
[1761325398269,9.59955662,110500.0,110490.0,1.33485582]
[1761325398477,9.59955662,110500.0,110490.0,1.74069192]
[1761325398847,9.59955662,110500.0,110490.0,1.10136475]
[1761325399053,9.59955662,110500.0,110490.0,1.2793793]
[1761325399544,9.59955662,110500.0,110490.0,1.31556158]
[1761325399766,9.59955662,110500.0,110490.0,0.89355441]
[1761325399984,9.59955662,110500.0,110490.0,1.33656158]
[1761325400155,9.59955662,110500.0,110490.0,0.77928158]
[1761325400355,9.59955662,110500.0,110490.0,1.11928158]
[1761325400563,9.60024083,110500.0,110490.0,0.51415086]
[1761325401023,9.60024083,110500.0,110490.0,0.55033314]
[1761325401626,9.60024083,110500.0,110490.0,0.29683086]
[1761325401829,9.60024083,110500.0,110490.0,0.45627086]
[1761325402040,9.60024083,110500.0,110490.0,0.29683086]
[1761325402263,9.60024083,110500.0,110490.0,0.45623086]
[1761325402469,9.60024083,110500.0,110490.0,0.45123086]
[1761325402689,9.60024083,110500.0,110490.0,0.27083086]
[1761325402903,9.7812363,110500.0,110490.0,0.43027086]
[1761325403128,9.7812363,110500.0,110490.0,0.27083086]
[1761325403336,9.7812363,110500.0,110490.0,0.43027086]
[1761325403845,9.60024083,110500.0,110490.0,0.27083086]
[1761325404054,9.60024083,110500.0,110490.0,0.43027086]
[1761325404482,9.60024083,110500.0,110490.0,0.27083086]
[1761325404690,9.7812363,110500.0,110490.0,0.43027086]
[1761325404904,9.60024083,110500.0,110490.0,0.43027086]
[1761325405732,9.7812363,110500.0,110490.0,0.43027086]
[1761325406350,9.60024083,110500.0,110490.0,0.43027086]
[1761325406569,9.7812363,110500.0,110490.0,0.43027086]
[1761325406807,9.7812363,110500.0,110490.0,0.27083086]
[1761325407034,9.7812363,110500.0,110490.0,0.43027086]
[1761325407245,9.7812363,110500.0,110490.0,0.27083086]
[1761325407450,9.7812363,110500.0,110490.0,0.43027086]
[1761325407658,9.7812363,110500.0,110490.0,0.27083086]
[1761325407864,9.7812363,110500.0,110490.0,0.43027086]
[1761325409999,9.7812363,110500.0,110490.0,0.24925901]
[1761325410206,9.7812363,110500.0,110490.0,0.43027086]
[1761325410620,9.7812363,110500.0,110490.0,0.43023086]
[1761325410849,9.7812363,110500.0,110480.0,0.18102517]
[1761325411013,9.78055209,110500.0,110490.0,0.18101185]
[1761325411213,9.58782259,110500.0,110490.0,0.18101185]
[1761325411606,9.5885068,110500.0,110490.0,0.18101185]
[1761325414821,9.5885068,110500.0,110480.0,0.43024418]
[1761325415039,0.18101185,110490.0,110480.0,0.43024418]
[1761325415252,9.58782259,110500.0,110480.0,0.43024418]
[1761325415459,0.18101185,110490.0,110480.0,0.43024418]
[1761325415926,0.18101185,110490.0,110480.0,0.43024725]
[1761325416076,0.18101185,110490.0,110480.0,0.18102824]
[1761325420300,0.18135398,110490.0,110480.0,0.18102824]
[1761325428162,0.00034213,110490.0,110480.0,0.18102824]
[1761325428576,0.00034213,110490.0,110480.0,0.27084725]
[1761325428792,0.00034213,110490.0,110480.0,0.69285442]
[1761325429604,0.00034213,110490.0,110480.0,1.15125797]
[1761325430071,0.00034213,110490.0,110480.0,1.18360241]
[1761325430707,0.00034213,110490.0,110480.0,1.15934114]
[1761325432791,0.00034213,110490.0,110480.0,1.20785665]
[1761325434086,0.00034213,110490.0,110480.0,1.20985665]
[1761325434423,0.00034213,110490.0,110480.0,1.16134114]
[1761325434854,0.00034213,110490.0,110480.0,1.16934114]
[1761325435056,0.00034213,110490.0,110480.0,1.16734114]
[1761325435265,0.00034213,110490.0,110480.0,1.15934114]
[1761325435460,0.00034213,110490.0,110480.0,1.17234114]
[1761325437520,0.00034213,110490.0,110480.0,1.1399967]
[1761325437700,0.00034213,110490.0,110480.0,1.17242412]
[1761325439488,0.00034213,110490.0,110480.0,1.1967412]
[1761325439961,0.00034213,110490.0,110480.0,1.2981412]
[1761325440143,0.00034213,110490.0,110480.0,1.3561012]
[1761325440343,0.00034213,110490.0,110480.0,0.93409403]
[1761325440561,0.00034213,110490.0,110480.0,1.1387812]
[1761325440794,0.00034213,110490.0,110480.0,1.3561012]
[1761325441714,0.00034213,110490.0,110480.0,0.93409403]
[1761325441925,0.00034213,110490.0,110480.0,1.3561012]
[1761325443038,0.00034213,110490.0,110480.0,0.93409403]
[1761325443251,0.00034213,110490.0,110480.0,1.3561012]
[1761325444115,0.00034213,110490.0,110480.0,1.2981412]
[1761325444344,0.00034213,110490.0,110480.0,1.3561012]
[1761325444786,0.00034213,110490.0,110480.0,1.77784445]
[1761325444987,0.00034213,110490.0,110480.0,0.93409403]
[1761325445219,0.00034213,110490.0,110480.0,1.77780445]
[1761325445437,0.00034213,110490.0,110480.0,1.74537703]
[1761325447017,0.00034213,110490.0,110480.0,1.77780445]
[1761325450276,0.00034213,110490.0,110480.0,1.80212851]
[1761325452028,0.00034213,110490.0,110480.0,2.1915763]
[1761325452274,0.00034213,110490.0,110480.0,2.61345151]
[1761325452508,0.00034213,110490.0,110480.0,3.40856079]
[1761325452509,1e-08,110490.0,110480.0,3.40856079]
[1761325452795,1e-08,110490.0,110480.0,0.95216437]
[1761325453024,9.40676867,110500.0,110490.0,1.40094455]
[1761325453245,9.40676867,110500.0,110490.0,1.66677661]
[1761325453467,9.40676867,110500.0,110490.0,0.88731961]
[1761325453682,9.40711076,110500.0,110490.0,1.31852276]
[1761325453900,9.40711076,110500.0,110490.0,1.78899003]
[1761325454334,9.40711076,110500.0,110490.0,1.79899003]
[1761325454787,9.40711076,110500.0,110490.0,1.80199003]
[1761325455011,9.40711076,110500.0,110490.0,0.9258452]
[1761325455250,9.40711076,110500.0,110490.0,1.76959562]
[1761325455670,9.40711076,110500.0,110490.0,0.9258452]
[1761325455897,9.40711076,110500.0,110490.0,1.75959562]
[1761325456326,9.40711076,110500.0,110490.0,1.81299534]
[1761325456564,9.40711076,110500.0,110490.0,1.77759562]
[1761325456778,9.40711076,110500.0,110490.0,1.78059562]
[1761325456995,9.40711076,110500.0,110490.0,1.14148041]
[1761325457228,9.40711076,110500.0,110490.0,1.33020732]
[1761325457451,9.40711076,110500.0,110490.0,0.96625211]
[1761325457676,9.40711076,110500.0,110490.0,1.39312732]
[1761325458998,9.40711076,110500.0,110490.0,1.35694504]
[1761325459224,9.40711076,110500.0,110490.0,1.39312732]
[1761325460547,9.40711076,110500.0,110490.0,1.36072041]
[1761325460978,9.40711076,110500.0,110490.0,1.78259562]
[1761325462554,9.40711076,110500.0,110490.0,1.74641334]
[1761325462985,9.40711076,110500.0,110490.0,1.78259562]
[1761325467639,9.40711076,110500.0,110490.0,1.79885841]
[1761325467846,9.40711076,110500.0,110490.0,0.95510799]
[1761325468051,9.40711076,110500.0,110490.0,1.79885841]
[1761325468501,9.40711076,110500.0,110490.0,1.73400356]
[1761325468718,9.40711076,110500.0,110490.0,1.79885841]
[1761325469157,9.40711076,110500.0,110490.0,1.7826108]
[1761325469588,9.40711076,110500.0,110490.0,1.73400356]
[1761325469800,9.40711076,110500.0,110490.0,1.78261072]
[1761325470847,9.40711076,110500.0,110490.0,1.73400356]
[1761325471935,9.40711076,110500.0,110490.0,1.73392356]
[1761325472173,9.40711076,110500.0,110490.0,1.78253045]
[1761325472737,9.40711076,110500.0,110490.0,1.14349617]
[1761325472931,9.40711076,110500.0,110490.0,0.93878096]
[1761325473105,9.40711076,110500.0,110490.0,1.36065617]
[1761325474143,9.40711076,110500.0,110490.0,1.56537138]
[1761325474304,9.40711076,110500.0,110490.0,1.78253138]
[1761325478037,9.40711076,110500.0,110490.0,1.80970752]
[1761325478245,9.40711076,110500.0,110490.0,1.38783231]
[1761325478460,9.40711076,110500.0,110490.0,0.9659571]
[1761325478672,9.40711076,110500.0,110490.0,1.80970752]
[1761325478878,9.40711076,110500.0,110490.0,1.7610997]
[1761325479506,9.40711076,110500.0,110490.0,1.82595455]
[1761325480397,9.40711076,110500.0,110490.0,0.98220413]
[1761325480601,9.40711076,110500.0,110490.0,1.82595455]
[1761325484040,9.40711076,110500.0,110490.0,0.98220413]
[1761325484250,9.40711076,110500.0,110490.0,1.82595455]
[1761325485425,9.40711076,110500.0,110490.0,0.98220413]
[1761325485633,9.40711076,110500.0,110490.0,1.82595455]
[1761325488204,8.98736461,110500.0,110490.0,1.7610997]
[1761325488398,8.89216537,110500.0,110490.0,1.7610997]
[1761325488615,8.89216537,110500.0,110490.0,0.96598808]
[1761325488616,8.56621767,110500.0,110490.0,0.96598808]
[1761325488816,8.35769853,110500.0,110490.0,2.18297491]
[1761325489013,8.35769853,110500.0,110490.0,1.7610997]
[1761325489342,8.35769853,110500.0,110490.0,1.80973226]
[1761325489673,8.35769853,110500.0,110490.0,1.7610997]
[1761325490103,8.35769853,110500.0,110490.0,1.80973226]
[1761325490342,8.35769853,110500.0,110490.0,1.80965226]
[1761325490548,8.35769853,110500.0,110490.0,0.74882184]
[1761325490761,8.35778687,110500.0,110490.0,1.80965226]
[1761325491409,8.35778687,110500.0,110490.0,0.96590184]
[1761325491596,8.35778687,110500.0,110490.0,1.80965226]
[1761325491995,8.35778687,110500.0,110490.0,1.95935226]
[1761325492598,8.35778687,110500.0,110490.0,1.11560184]
[1761325492823,8.35778687,110500.0,110490.0,1.95935226]
[1761325493005,8.35778687,110500.0,110490.0,1.11560184]
[1761325493167,8.35778687,110500.0,110490.0,1.95935226]
[1761325495547,8.35778687,110500.0,110490.0,1.90139226]
[1761325495764,8.35778687,110500.0,110490.0,1.95931226]
[1761325496479,8.35778687,110500.0,110490.0,1.74227226]
[1761325496933,8.35778687,110500.0,110490.0,1.53743705]
[1761325497404,8.35778687,110500.0,110490.0,1.32039705]
[1761325497666,8.35778687,110500.0,110490.0,1.53743705]
[1761325497885,8.35778687,110500.0,110490.0,1.13451477]
[1761325498153,8.35778687,110500.0,110490.0,1.30817007]
[1761325498424,8.35778687,110500.0,110490.0,0.9386857]
[1761325498707,8.35778687,110500.0,110490.0,1.36056091]
[1761325498932,8.35778687,110500.0,110490.0,1.31192835]
[1761325500254,8.35778687,110500.0,110490.0,0.89005314]
[1761325500467,8.35778687,110500.0,110490.0,1.31192835]
[1761325500683,8.35778687,110500.0,110490.0,1.09488835]
[1761325500905,8.35778687,110500.0,110490.0,0.4395748]
[1761325501116,8.35778687,110500.0,110490.0,0.63112776]
[1761325501330,8.35778687,110500.0,110490.0,1.39300297]
[1761325501522,8.35778687,110500.0,110490.0,0.97112776]
[1761325501876,8.35778687,110500.0,110490.0,1.38800297]
[1761325502071,8.35778687,110500.0,110490.0,1.36700297]
[1761325502393,8.35778687,110500.0,110490.0,0.94512776]
[1761325502597,8.35778687,110500.0,110490.0,1.36700297]
[1761325503173,8.35778687,110500.0,110490.0,0.94512776]
[1761325503375,8.35778687,110500.0,110490.0,1.36700297]
[1761325503580,8.35778687,110500.0,110490.0,1.33457001]
[1761325503804,8.35778687,110500.0,110490.0,0.9126948]
[1761325504380,8.35778687,110500.0,110490.0,1.33457001]
[1761325504582,8.35778687,110500.0,110490.0,0.9126948]
[1761325505390,8.35778687,110500.0,110490.0,0.94511925]
[1761325505813,8.35778687,110500.0,110490.0,0.69189697]
[1761325506018,8.35778687,110500.0,110490.0,0.80245531]
[1761325507906,8.35778687,110500.0,110490.0,0.64325531]
[1761325508124,8.35778687,110500.0,110490.0,0.30325531]
[1761325508327,8.35778687,110500.0,110490.0,0.46241531]
[1761325508910,8.35778687,110500.0,110490.0,0.48673567]
[1761325508911,8.53878234,110500.0,110490.0,0.48673567]
[1761325509431,8.35778687,110500.0,110490.0,0.48673567]
[1761325509825,8.53878234,110500.0,110490.0,0.48673567]
[1761325510024,8.53878234,110500.0,110490.0,0.45431122]
[1761325510443,8.35778687,110500.0,110490.0,0.45431122]
[1761325511427,8.35778687,110500.0,110490.0,0.48673567]
[1761325511938,8.35778687,110500.0,110490.0,0.42999086]
[1761325516477,8.53878234,110500.0,110490.0,0.42999086]
[1761325516688,8.35778687,110500.0,110490.0,0.42999086]
[1761325517287,8.53878234,110500.0,110490.0,0.42999086]
[1761325517808,8.53878234,110500.0,110490.0,0.24897901]
[1761325518413,8.53878234,110500.0,110490.0,0.42999086]
[1761325519454,8.53978234,110500.0,110490.0,0.42999086]
[1761325519998,8.53878234,110500.0,110490.0,0.42999086]
[1761325520317,8.53978234,110500.0,110490.0,0.42999086]
[1761325521131,8.53978234,110500.0,110490.0,0.24897901]
[1761325521547,8.53978234,110500.0,110490.0,0.42999086]
[1761325524685,8.53978234,110500.0,110490.0,0.24897901]
[1761325525002,8.53978234,110500.0,110490.0,0.42999086]
[1761325525478,8.14913293,110500.0,110490.0,0.42999086]
[1761325525880,8.14913293,110500.0,110490.0,0.24897901]
[1761325526509,8.14913293,110500.0,110490.0,0.42999086]
[1761325526853,8.14913293,110500.0,110490.0,0.24897901]
[1761325527054,8.14913293,110500.0,110490.0,0.42999086]
[1761325527637,8.14913293,110500.0,110490.0,0.24897901]
[1761325527843,8.14913293,110500.0,110480.0,0.34018824]
[1761325528107,0.18101185,110490.0,110480.0,0.43000725]
[1761325528312,8.14913293,110500.0,110480.0,0.43000725]
[1761325528849,8.14813293,110500.0,110480.0,0.43000725]
[1761325529429,8.14913293,110500.0,110480.0,0.43000725]
[1761325529629,0.18101185,110490.0,110480.0,0.43000725]
[1761325530039,8.14913293,110500.0,110480.0,0.43000725]
[1761325530460,8.14813293,110500.0,110480.0,0.43000725]
[1761325532362,8.14913293,110500.0,110480.0,0.43000725]
[1761325533753,0.18101185,110490.0,110480.0,0.43000725]
[1761325537176,0.18101185,110490.0,110480.0,0.24897901]
[1761325537389,0.18101185,110490.0,110480.0,0.43000725]
[1761325538648,0.18201185,110490.0,110480.0,0.43000725]
[1761325539039,0.18101185,110490.0,110480.0,0.24897901]
[1761325539361,0.18101185,110490.0,110480.0,0.27326952]
[1761325539362,0.18201185,110490.0,110480.0,0.27326952]
[1761325539568,0.18201185,110490.0,110480.0,0.24897901]
[1761325539930,0.18102824,110480.0,110470.0,0.23775936]
[1761325540132,0.18102824,110480.0,110470.0,0.45431414]
[1761325540345,0.18102824,110480.0,110470.0,0.27326952]
[1761325542786,0.18102824,110480.0,110470.0,0.11410952]
[1761325543162,0.18202824,110480.0,110470.0,0.11410952]
[1761325544512,0.18202824,110480.0,110470.0,0.08981901]
[1761325545518,0.18006324,110480.0,110470.0,0.08981901]
[1761325546626,0.18006324,110480.0,110460.0,0.02429051]
[1761325546627,0.18104462,110470.0,110460.0,0.02429051]
[1761325546831,0.18104462,110470.0,110460.0,0.11410952]
[1761325547603,0.18104462,110470.0,110460.0,0.02429051]
[1761325549100,0.18106101,110460.0,110450.0,0.40604624]
[1761325549279,0.18106101,110460.0,110450.0,0.49586525]
[1761325550248,0.1811493,110460.0,110450.0,0.49886525]
[1761325550848,0.1811493,110460.0,110450.0,0.11710952]
[1761325551301,0.1811493,110460.0,110450.0,0.29818693]
[1761325551559,8.829e-05,110460.0,110450.0,0.29818693]
[1761325551687,8.829e-05,110460.0,110450.0,0.79710481]
[1761325552046,8.829e-05,110460.0,110450.0,0.75368036]
[1761325552192,0.00108829,110460.0,110450.0,1.20274855]
[1761325552402,8.829e-05,110460.0,110450.0,1.20274855]
[1761325552931,0.00108829,110460.0,110450.0,1.20274855]
[1761325554126,0.00108829,110460.0,110450.0,0.78086879]
[1761325554331,0.00108829,110460.0,110450.0,1.20274855]
[1761325554719,8.829e-05,110460.0,110450.0,0.78086879]
[1761325554895,8.829e-05,110460.0,110450.0,1.20274855]
[1761325555093,8.829e-05,110460.0,110450.0,1.21374855]
[1761325555323,8.829e-05,110460.0,110450.0,1.20574855]
[1761325555528,8.829e-05,110460.0,110450.0,1.17910689]
[1761325555867,8.829e-05,110460.0,110450.0,1.17610689]
[1761325556102,8.829e-05,110460.0,110450.0,1.18110689]
[1761325558066,8.829e-05,110460.0,110450.0,1.24596174]
[1761325559935,8.829e-05,110460.0,110450.0,1.18110689]
[1761325560560,8.829e-05,110460.0,110450.0,1.24596174]
[1761325560745,8.829e-05,110460.0,110450.0,1.18110689]
[1761325563423,8.829e-05,110460.0,110450.0,1.22982183]
[1761325564649,8.829e-05,110460.0,110450.0,1.18110689]
[1761325566894,8.829e-05,110460.0,110450.0,0.75922713]
[1761325567250,8.829e-05,110460.0,110450.0,1.18129355]
[1761325571334,8.829e-05,110460.0,110450.0,0.75922713]
[1761325571534,8.829e-05,110460.0,110450.0,0.37383267]
[1761325571780,8.829e-05,110460.0,110450.0,0.98760224]
[1761325571982,8.829e-05,110460.0,110450.0,0.93885442]
[1761325572421,8.829e-05,110460.0,110450.0,1.75885094]
[1761325572634,8.829e-05,110460.0,110450.0,0.88521495]
[1761325572847,8.829e-05,110460.0,110450.0,1.30727432]
[1761325573056,8.829e-05,110460.0,110450.0,1.72934074]
[1761325573947,8.829e-05,110460.0,110450.0,1.30427432]
[1761325574624,8.829e-05,110460.0,110450.0,1.31527432]
[1761325575086,8.829e-05,110460.0,110450.0,1.31827432]
[1761325576583,8.829e-05,110460.0,110450.0,0.8962079]
[1761325576770,8.829e-05,110460.0,110450.0,1.31827432]
[1761325577339,8.829e-05,110460.0,110450.0,0.97827432]
[1761325577744,8.829e-05,110460.0,110450.0,1.31827432]
[1761325578619,0.18103006,110480.0,110470.0,0.18104462]
[1761325578847,0.18111839,110480.0,110470.0,0.18104462]
[1761325579937,0.1901698,110480.0,110470.0,0.18104462]
[1761325580314,0.1911698,110480.0,110470.0,0.18104462]
[1761325590024,0.00108833,110480.0,110470.0,0.18104462]
[1761325590458,0.00108833,110480.0,110470.0,0.34032462]
[1761325590658,0.00108833,110480.0,110470.0,0.78676293]
[1761325591599,0.00108833,110480.0,110470.0,0.36469651]
[1761325592012,0.18211657,110480.0,110470.0,0.36469651]
[1761325592451,0.00108833,110480.0,110470.0,0.36469651]
[1761325593312,0.00108833,110480.0,110470.0,0.90907802]
[1761325593803,0.00108833,110480.0,110470.0,0.93626391]
[1761325597186,0.00108833,110480.0,110470.0,1.7434914]
[1761325597707,0.00108833,110480.0,110470.0,1.76786028]
[1761325598319,0.00108833,110480.0,110470.0,1.75888149]
[1761325598531,0.00108833,110480.0,110470.0,1.33681507]
[1761325598938,8.833e-05,110480.0,110470.0,1.33681507]
[1761325599443,8.833e-05,110480.0,110470.0,1.30531899]
[1761325600081,8.833e-05,110480.0,110470.0,0.68779029]
[1761325600262,8.833e-05,110480.0,110470.0,1.27737697]
[1761325600676,8.833e-05,110480.0,110470.0,0.93737697]
[1761325601758,8.13058093,110500.0,110480.0,0.18102824]
[1761325601944,0.18101298,110490.0,110480.0,0.27084725]
[1761325602125,8.13066925,110500.0,110480.0,0.27084725]
[1761325602319,0.18101185,110490.0,110480.0,0.27084725]
[1761325602909,0.18101185,110490.0,110470.0,0.20641485]
[1761325603112,0.18101185,110490.0,110470.0,0.45471204]
[1761325603320,0.18102824,110480.0,110470.0,0.45471204]
[1761325603518,0.18101185,110490.0,110470.0,0.45471204]
[1761325604082,0.18201185,110490.0,110470.0,0.45471204]
[1761325604826,0.18102824,110480.0,110470.0,0.45471204]
[1761325605058,0.18101185,110490.0,110470.0,0.45471204]
[1761325605489,0.18202824,110480.0,110470.0,0.45471204]
[1761325606154,0.18202824,110480.0,110470.0,0.20541303]
[1761325606352,0.18102824,110480.0,110470.0,0.34048462]
[1761325607039,0.18202824,110480.0,110470.0,0.34048462]
[1761325608101,0.18202824,110480.0,110470.0,0.15944]
[1761325609122,0.18104462,110470.0,110460.0,0.37391071]
[1761325609345,0.18104462,110470.0,110460.0,0.46372972]
[1761325609731,0.18104462,110470.0,110460.0,0.46373732]
[1761325611195,0.18102824,110480.0,110460.0,0.46373732]
[1761325611397,0.18104462,110470.0,110460.0,0.46373732]
[1761325611814,0.18104462,110470.0,110460.0,0.20644013]
[1761325612235,0.18104462,110470.0,110460.0,0.02537912]
[1761325612411,0.18104462,110470.0,110460.0,0.02437912]
[1761325612849,0.18204462,110470.0,110460.0,0.02437912]